Cogmind - Beta 11 X10 @@@ ROGUE MODE // 2022.03.04 @ 03:15:47 Player: maxwell Result: Destroyed by 8R-AWN with 8R-AWN's Boregun Performance ------------- Evolutions (0) 0 Regions Visited (3) 600 Robots Destroyed (19) 95 Value Destroyed (317) 317 Prototype IDs (25) 500 Alien Tech Used (0) 0 Bonus (-490) -490 TOTAL SCORE: 1022 Bonus ------- Aligned with FarCom 300 Friendly Fire -790 Cogmind --------- Core Integrity 0/250 Matter 148/300 Energy 263/265 System Corruption 0% Temperature Cool (0) Movement Treading (240) Ox1 Location -10/Exiles Parts ------- > --- POWER (1) -------- Improved Ion Engine > --- PROPULSION (2) --- Light Treads Light Treads > --- UTILITY (2) ------ High-capacity Storage Unit Light Armor Plating > --- WEAPON (2) ------- Heavy Assault Rifle Minigun > --- INVENTORY (20) --- Assault Rifle Assault Rifle Light Assault Rifle Peak State ------------ > --- POWER ------------ Improved Ion Engine > --- PROPULSION ------- Light Treads Light Treads > --- UTILITY ---------- Heavy Armor Plating > --- WEAPON ----------- Heavy Assault Rifle Minigun > --- INVENTORY -------- Light Treads Light Treads Assault Rifle [Rating: 15] Favorites ----------- Power Light Ion Engine Engine Light Ion Engine Propulsion Light Treads Treads Light Treads Utility High-capacity Storage Unit Storage High-capacity Storage Unit Protection Light Armor Plating Weapon Assault Rifle Energy Gun EM Pulse Gun Ballistic Gun Assault Rifle Launcher Shock Bomb Launcher Build | -11 -10 -10 -10 ------- Run | Scr Mat Min Exi Slots Evolved . | . . . . Power . | . . . . Propulsion . | . . . . Utility . | . . . . Weapon . | . . . . Parts Attached 28 | 6 6 2 14 Power 5 | 1 2 1 1 Engine 5 | 1 2 1 1 Core . | . . . . Reactor . | . . . . Propulsion 4 | 2 . . 2 Treads 4 | 2 . . 2 Leg . | . . . . Wheel . | . . . . Hover . | . . . . Flight . | . . . . Utility 10 | 1 2 . 7 Device . | . . . . Storage 5 | 1 2 . 2 Processor . | . . . . Hackware . | . . . . Protection 5 | . . . 5 Artifact . | . . . . Weapon 9 | 2 2 1 4 Energy Gun 1 | 1 . . . Energy Cannon . | . . . . Ballistic Gun 5 | 1 2 . 2 Ballistic Cannon . | . . . . Launcher 3 | . . 1 2 Special Weapon . | . . . . Impact Weapon . | . . . . Slashing Weapon . | . . . . Piercing Weapon . | . . . . Special Melee Weapon . | . . . . Unidentified Prototypes . | . . . . Parts Lost 8 | . 3 . 5 Power 2 | . 1 . 1 Propulsion 2 | . . . 2 Utility 2 | . . . 2 Weapon 2 | . 2 . . Highest Loss Streak 3 | . 1 . 3 To Critical Strikes 3 | . . . 3 Average Slot Usage (%) 98 | . 97 100 97 Engine 13 | . 13 14 14 Treads 27 | . 28 28 27 Storage 24 | . 25 28 20 Protection 1 | . . . 5 Energy Gun 1 | . 4 . . Ballistic Gun 16 | . 23 16 9 Launcher 9 | . . 11 18 Naked Turns . | . . . . Heaviest Build 58 | 12 54 58 58 Greatest Support 40 | 40 40 40 40 Greatest Overweight (x) 1 | 1 1 1 1 Average Overweight (x) . | . . 1 . Largest Inventory Capacity 20 | 8 20 20 20 Average Capacity 18 | 6 18 20 18 Most Carried 20 | 4 7 20 20 Average Carried 12 | 2 6 14 15 Final Capacity 20 | 8 20 20 20 Final Carried 20 | 4 6 20 3 Class Distribution -------------------- 97% | Mutant Dominant Class ---------------- Mutant | -10/Materials Mutant | -10/Mines Mutant | -10/Exiles Resources | -11 -10 -10 -10 ----------- Run | Scr Mat Min Exi Matter Collected 1093 | 216 178 311 388 Remotely . | . . . . Salvage Created 469 | . 402 45 22 Parts 49 | . 44 5 . Haulers Intercepted 2 | . 2 . . Recyclers Shooed . | . . . . Parts Field Recycled . | . . . . Retrieved Matter . | . . . . Parts Self-Destructed . | . . . . Prevented . | . . . . Kills | -11 -10 -10 -10 ------- Run | Scr Mat Min Exi Combat Hostiles Destroyed 15 | . 10 3 2 Guns 10 | . 10 . . AOE 5 | . . 3 2 Classes Destroyed 6 | . 5 . 1 Hauler 2 | . 2 . . Operator 1 | . 1 . . Watcher 3 | . 3 . . Swarmer 9 | . 6 3 . Grunt 4 | . 4 . . Assembled 7 | . . . 7 Best Kill Streak 4 | . 4 3 2 Combat Bots Only 3 | . 3 3 2 Max Kills in Single Turn 5 | . 1 2 5 Gunslinging . | . . . . Exploded 2 | . . 2 1 Melee . | . . . . Uniques/NPCs Destroyed . | . . . . Combat | -11 -10 -10 -10 -------- Run | Scr Mat Min Exi Damage Taken 1738 | . 648 48 1042 Core 263 | . 85 15 163 Absorbed by Shields . | . . . . Core Remaining (%) 100 | 100 . . . Volleys Fired 102 | . 53 4 45 Largest 2 | . 2 1 2 Hottest 60 | . 60 36 60 Shots Fired 200 | . 106 4 90 Gun 188 | . 106 . 82 Cannon . | . . . . Launcher 12 | . . 4 8 Special . | . . . . Kinetic 172 | . 90 . 82 Thermal . | . . . . Explosive 8 | . . . 8 Electromagnetic 20 | . 16 4 . Robot Hit Streak 14 | . 11 11 14 Robot Miss Streak 5 | . 4 . 5 Penetration Max . | . . . . Secondary Targets 1 | . 1 . . Max Gunslinging Chain 1 | . 1 . . Shots Hit Robots 124 | . 63 1 60 Core Hits 48 | . 25 4 19 Critical Kills . | . . . . Critical Parts Destroyed 3 | . 1 . 2 Critical Strikes 3 | . 1 . 2 Destroy 3 | . 1 . 2 Melee Attacks . | . . . . Impact . | . . . . Slashing . | . . . . Piercing . | . . . . Sneak Attacks . | . . . . Combat Hostiles . | . . . . Follow-up Attacks . | . . . . Damage Inflicted 2371 | . 850 129 1392 Guns 1809 | . 850 . 959 Cannons . | . . . . Explosions 557 | . . 124 433 Melee . | . . . . Ramming 5 | . . 5 . Kinetic 1688 | . 729 . 959 Thermal 65 | . . 65 . Explosive 433 | . . . 433 Electromagnetic 180 | . 121 59 . Impact . | . . . . Slashing . | . . . . Piercing . | . . . . Highest Corruption . | . . . . Average Corruption . | . . . . Corruption Purged . | . . . . Corruption Blocked . | . . . . Overload Shots . | . . . . Overflow Damage . | . . . . Projectiles . | . . . . Explosions . | . . . . Melee . | . . . . Knockbacks 1 | . . 1 . Impact 1 | . . 1 . Kinetic . | . . . . Secondary . | . . . . Self-Inflicted Damage 11 | . . 11 . Shots 1 | . . 1 . Rammed 1 | . . 1 . Targets Rammed 1 | . . 1 . Kicked . | . . . . Crushed . | . . . . Highest Temperature 125 | . 21 . 125 Average Temperature 44 | . 11 . 48 Received Heat Transfer 153 | . 144 9 . Siege Activations . | . . . . Robots Corrupted . | . . . . Combat Hostiles . | . . . . Parts Fried . | . . . . Impact Corruptions . | . . . . Robots Melted . | . . . . Combat Hostiles . | . . . . Parts Melted . | . . . . Heat Transferred 100 | . . 100 . Parts Sabotaged . | . . . . Parts Stolen . | . . . . Parts Stripped . | . . . . Power Chain Reactions 1 | . . 1 . Missiles Intercepted . | . . . . Alert | -11 -10 -10 -10 ------- Run | Scr Mat Min Exi Peak Influence 148 | . 148 87 . Initial 2 | . . 2 . Average 43 | . 77 13 . Maximum Alert Level . | . . . . Low Security (%) 100 | 100 100 100 . Level 1 . | . . . . Level 2 . | . . . . Level 3 . | . . . . Level 4 . | . . . . Level 5 . | . . . . High Security . | . . . . Max Security . | . . . . Squads Dispatched 4 | . 3 1 . Investigation 2 | . 1 1 . Extermination . | . . . . Reinforcement 2 | . 2 . . Assault . | . . . . Garrison . | . . . . Intercept . | . . . . Construction Impeded . | . . . . Haulers Reinforced . | . . . . Active Scanning Responses . | . . . . Cargo Convoy Interrupts . | . . . . Stealth | -11 -10 -10 -10 --------- Run | Scr Mat Min Exi Distress Signals 1 | . 1 . . Communications Jammed . | . . . . Distress Signals . | . . . . Times Spotted 25 | . 18 3 4 Peak Tracking Total 5 | . 4 1 5 Tactical Retreats 2 | . 1 . 1 Traps | -11 -10 -10 -10 ------- Run | Scr Mat Min Exi Traps Triggered . | . . . . Indirectly . | . . . . Trap Hack Attempts . | . . . . Triggered . | . . . . Disarmed . | . . . . Reprogrammed . | . . . . Reused . | . . . . Traps Extracted . | . . . . Installed . | . . . . Triggered . | . . . . Machines | -11 -10 -10 -10 ---------- Run | Scr Mat Min Exi Machines Disabled 5 | . . 1 4 Max in Single Turn 2 | . . 1 2 Machines Sabotaged . | . . . . Garrisons Compromised . | . . . . Overloaded Fab Kills . | . . . . Hacking | -11 -10 -10 -10 --------- Run | Scr Mat Min Exi Machines Accessed 8 | . 5 1 2 Terminals 4 | . 4 . . Fabricators . | . . . . Repair Stations . | . . . . Recycling Units 1 | . 1 . . Scanalyzers . | . . . . Garrison Access . | . . . . Total Hacks 18 | . 15 1 2 Successful 12 | . 9 1 2 Failed 6 | . 6 . . Catastrophic 1 | . 1 . . Database Lockouts . | . . . . Manual 12 | . 11 . 1 Terminals 12 | . 12 . . Fabricators . | . . . . Repair Stations . | . . . . Recycling Units 3 | . 3 . . Scanalyzers . | . . . . Garrison Access . | . . . . Terminal Hacks 6 | . 3 1 2 Record 1 | . . . 1 Robot Analysis 1 | . 1 . . Prototype ID Bank 1 | . 1 . . Open Door 1 | . . 1 . Terminal Index 1 | . 1 . . EX-Prototype ID Bank 1 | . . . 1 Fabricator Hacks . | . . . . Repair Station Hacks . | . . . . Recycling Unit Hacks 1 | . 1 . . Retrieve Components 1 | . 1 . . Scanalyzer . | . . . . Garrison Access Hacks . | . . . . Unauthorized Hacks 5 | . 5 . . Terminals 4 | . 4 . . Assimilate 1 | . 1 . . Botnet 2 | . 2 . . Operators 1 | . 1 . . Fabricators . | . . . . Repair Stations . | . . . . Recycling Units 1 | . 1 . . Tunnel 1 | . 1 . . Scanalyzers . | . . . . Garrison Access . | . . . . Data Cores Recovered . | . . . . Used . | . . . . Hacking Detections 3 | . 3 . . Full Trace Events . | . . . . Feedback Events . | . . . . Feedback Blocked . | . . . . Robot Schematics Acquired . | . . . . Robots Built . | . . . . Authchips . | . . . . Time . | . . . . Total Robot Build Rating . | . . . . Part Schematics Acquired . | . . . . Parts Built . | . . . . Authchips . | . . . . Time . | . . . . Total Part Build Rating . | . . . . Parts Repaired . | . . . . Time . | . . . . Parts Recycled . | . . . . Recycled Matter . | . . . . Retrieved Matter . | . . . . Retrieved Components 10 | . 10 . . Parts Scanalyzed . | . . . . Part Schematics Acquired . | . . . . Parts Damaged . | . . . . Bothacking | -11 -10 -10 -10 ------------ Run | Scr Mat Min Exi Used RIF Installer . | . . . . Robots Hacked . | . . . . Non-combat . | . . . . Combat . | . . . . Robot Hacks Applied . | . . . . Relay Couplers Released . | . . . . Fabnet Peak Effective % . | . . . . Robots Rewired . | . . . . Allies Hacked . | . . . . Hacks Repelled . | . . . . Allies | -11 -10 -10 -10 -------- Run | Scr Mat Min Exi Total Allies . | . . . . Largest Group . | . . . . Highest-Rated Group . | . . . . Highest-Rated Ally . | . . . . Total Orders . | . . . . Ally Attacks . | . . . . Total Damage . | . . . . Kills . | . . . . Allies Corrupted . | . . . . Allies Melted . | . . . . Intel | -11 -10 -10 -10 ------- Run | Scr Mat Min Exi Robot Analysis Total 1 | . 1 . . Derelict Logs Recovered 1 | . . 1 . Drone Launches . | . . . . Drone Recoveries . | . . . . Exploration | -11 -10 -10 -10 ------------- Run | Scr Mat Min Exi Turns Passed 3926 | 73 1266 1391 1196 Spaces Moved 1505 | 45 452 566 442 Core 12 | 12 . . . Treads 1493 | 33 452 566 442 Legs . | . . . . Wheels . | . . . . Hover . | . . . . Flight . | . . . . Fastest Speed 50 | 50 160 240 160 Average Speed 229 | 135 222 240 232 Slowest Speed 240 | 160 240 240 240 Overloaded Moves . | . . . . Propulsion Burnouts . | . . . . Robots Hopped . | . . . . Cave-ins Triggered . | . . . . Exploration Rate (%) 59 | 3 70 97 68 Regions Visited 3 Branch Regions 2 Pre-discovered Areas 3 | . 1 1 1 Known Exits Taken . | . . . . Unknown Exits Taken 3 | 1 1 1 . Scrap Searched 1 | . . 1 . Spaces Dug . | . . . . Terrain Destroyed 12 | . . . 12 Melee . | . . . . Projectile . | . . . . AOE 12 | . . . 12 Terrain Rammed . | . . . . Walls Destroyed . | . . . . Machines Disabled . | . . . . Actions | -11 -10 -10 -10 --------- Run | Scr Mat Min Exi Total 1791 | 54 606 596 535 Wait 97 | . 89 . 8 Move 1502 | 44 451 565 442 Hop . | . . . . Pick Up 39 | 4 5 18 12 Fast Attach 14 | 6 3 1 4 Attach 11 | . 3 . 8 Detach . | . . . . Swap 3 | . . 1 2 Drop 22 | . 2 6 14 Fire 102 | . 53 4 45 Melee . | . . . . Ram . | . . . . Kick . | . . . . Crush 1 | . . 1 . Escape Stasis . | . . . . Rewire . | . . . . Trap . | . . . . Miscellaneous . | . . . . Route ------- -11/Scrapyard -10/Materials (discovered 4 exits: [*Mat x2] / *Min x2) -10/Mines (discovered 3 exits: [*Mat x2] / *Exi) -10/Exiles History --------- Turn | Location | Event 2 | -11/Scrapyard | Discovered new exit (range 16) 74 | -11/Scrapyard | Entered Materials 195 | -10/Materials | Discovered new exit (range 5) 324 | -10/Materials | Build established: Mutant 361 | -10/Materials | Discovered new exit (range 8) 1184 | -10/Materials | Discovered new exit (range 3) 1278 | -10/Materials | Discovered new exit (range 16) 1340 | -10/Materials | Entered Mines 1344 | -10/Mines | Met a Derelict bent on vengeance 1360 | -10/Mines | Learned location of Zion (-6) 1363 | -10/Mines | Met a Derelict shopkeep closing up shop 1739 | -10/Mines | Found a hidden stash of uninstalled traps 1873 | -10/Mines | Discovered new exit (range 5) 2226 | -10/Mines | Discovered new exit (range 9) 2341 | -10/Mines | Joined a pair of Derelicts in attacking an 0b10 outpost 2719 | -10/Mines | Deemed a non-threat by the Exiles lab entrance 2721 | -10/Mines | Discovered new exit (range 5) 2731 | -10/Mines | Entered Exiles 2791 | -10/Exiles | Met 8R-AWN 2830 | -10/Exiles | Met EX-HEX 2935 | -10/Exiles | Met EX-DEC 3142 | -10/Exiles | Met EX-BIN 3175 | -10/Exiles | Aligned with FarCom system 3178 | -10/Exiles | Given EX-Vault access code 3233 | -10/Exiles | Opened EX-Vault 3291 | -10/Exiles | Warned to stay clear of 0b10 Research branches 3757 | -10/Exiles | Attacked by the Exiles 3762 | -10/Exiles | Core integrity fell below 50% 3837 | -10/Exiles | Core integrity fell below 20% 3842 | -10/Exiles | Lost 3 parts (2n1u) 3927 | -10/Exiles | Destroyed by 8R-AWN with 8R-AWN's Boregun Last Messages --------------- 03880_ Penetrated by HV Slug. 03884_ 8R-AWN suffers critical hit (Destroy). 03884_ Destroyed Prototype Leg. 03890_ HV Slug penetrates Wall. 03897_ Penetrated by HV Slug. 03897_ HV Slug penetrates Machine. 03901_ Penetrated by HV Slug. 03901_ Critical hit (Destroy). 03901_ Imp. Ion Engine destroyed. 03901_ HV Slug penetrates Wall. 03908_ Penetrated by HV Slug. 03908_ HV Slug penetrates Machine. 03908_ Acquired Imp. Ion Engine. 03912_ Acquired Assault Rifle. 03913_ Penetrated by HV Slug. 03916_ Acquired Lgt. Assault Rifle. 03916_ Penetrated by HV Slug. 03920_ HV Slug penetrates Machine. 03921_ Extracted 150 matter. 03927_ Penetrated by HV Slug. Map ----- +----------------------------------------------------+ | ???????#" """#????????????????????????? | | ???????#" """#????????????????????????? | | ???????#" """#????????????????????????? | | ???????#" """#????????????????????????? | | ???????## """"????????????????????????? | | ????????# """#????????????????????????? | | ????????#" "X" """"????????????????????????? | | ????????#" """ #????????????????????????? | | ????????#" """""""""#????????????????????????? | | ???????##" ###########????????????????????????? | | ??????##"" #??????????????????????????????????? | | ?######"" #??????????????????????????????????? | | ##""""""" ##???##????????????????????????????? | | """" " "" ##???"##########??????????????????? | | """ " ##### """"""##?????????????????? | | " " " """"##????????????????? | | " #????????????????? | | " """#????????????????? | | a"#???????????#####? | | ! "##?????????##" #? | | ! "###???????#" #? | | """""" ""#??????##" ## | | ######""" * [ "#????### # | | ""##????#####" ] [[ ##???# | | """##?????????## !!] ] ##### | | ""##???????????# @! g ;## | | ""#???????????##"" ## | | ########??####"" #### | | ## ####""" ""#?#""" | | """" #"" ##?#### | | ######?????? | | ##??????????? | | " ##???????????? | | " "" "" ""#????????????? | | ""## ##""" " " ""# ##????????????? | | ""#### ######""" """# ##?????????????? | | """"##??# #????###""""## ##??????????????? | | """#??## ####???######## # ##???????????????? | | ""##??# " #??????????#######????????????????? | | """##???#" !#?????????????????????????????????? | | ##????#" "#?????????????????????????????????? | | ##?????#!!""!"#?????????????????????????????????? | | #??????########?????????????????????????????????? | | #????????????????????????????????????????????????? | | ?????????????????????????????????????????????????? | | ?????????????????????????????????????????????????? | | ?????????????????????????????????????????????????? | | ?????????????????????????????????????????????????? | | ?????????????????????????????????????????????????? | | ?????????????????????????????????????????????????? | +----------------------------------------------------+ Best States ------------- Heat Dissipation 25 Energy Generation 12 Energy Capacity 465 Matter Stores 300 Matter Capacity 300 Sight Range 16 Terrain Scan Density 10 Armor Coverage 600 Evasion (%) 40 Recoil Reduction 2 Item Schematics ----------------- None Robot Schematics ------------------ None Fabricated ------------ Nothing Alien Tech Used ----------------- None Achievements -------------- None Challenges ------------ None Game ------ Seed PulseRestorationTendrils Manual? 0 Play Time 00:14:47 Cumulative 190.9 hours Start 2022.03.04 @ 03:04:39 End 2022.03.04 @ 03:15:47 Sessions 1 Manual Loads 0 Difficulty Rogue Special Mode None Game No. 296 Rogue 274 Adventurer 4 Explorer 18 Win Type - Total 10 Types 8/0/0/2/0/0/0/0/0 Lore% 68 Gallery% 85 Achievement% 70 Wizard Run 0 Options --------- ASCII 0 Keyboard 1 Movement Numpad Keybinds 0 Fullscreen 1 Font 18/SmallcapsGlow Map View 76x50 Tactical HUD 1 Map Filters NONE Filters NONE Steam 1 RUN: 2b5a9fd0-e615-4cf8-990b-1e4e2fb4904c